bitfinex-derivatives/quotes_BTCF0:USTF0_20241231
["timestamp","ask_amount","ask_price","bid_price","bid_amount"]
[1735662826516,0.052849,94765.0,94764.0,0.002]
[1735662826829,0.413649,94765.0,94764.0,0.002]
[1735662827433,0.45886057,94765.0,94764.0,0.00116485]
[1735662827618,0.45986057,94765.0,94764.0,0.01016485]
[1735662828019,0.45886057,94765.0,94764.0,0.00116485]
[1735662828221,0.45886057,94765.0,94764.0,0.00416485]
[1735662828427,0.45886057,94765.0,94764.0,0.05701385]
[1735662828621,0.3608,94765.0,94764.0,0.05401385]
[1735662828831,0.3608,94765.0,94764.0,0.00416485]
[1735662828832,0.413649,94765.0,94764.0,0.00416485]
[1735662829327,0.413649,94765.0,94764.0,0.05701385]
[1735662829524,0.415649,94765.0,94764.0,0.0581787]
[1735662830529,0.417649,94765.0,94764.0,0.0551787]
[1735662830924,0.415649,94765.0,94764.0,0.0551787]
[1735662831231,0.416649,94765.0,94764.0,0.0551787]
[1735662833531,0.418649,94765.0,94764.0,0.0551787]
[1735662835524,0.418649,94765.0,94764.0,0.0023297]
[1735662836330,0.052859,94746.0,94745.0,0.00158336]
[1735662836535,0.413659,94746.0,94745.0,0.00158336]
[1735662837734,0.414659,94746.0,94745.0,0.06244336]
[1735662837932,0.414659,94746.0,94745.0,0.06086]
[1735662838630,0.414659,94746.0,94745.0,0.06286]
[1735662839932,0.45840093,94746.0,94745.0,0.06286]
[1735662841025,0.40554193,94746.0,94745.0,0.06286]
[1735662841829,0.45840093,94746.0,94745.0,0.06286]
[1735662842029,0.40554193,94746.0,94745.0,0.06286]
[1735662842734,0.001,94746.0,94745.0,0.06286]
[1735662842930,0.3608,94754.0,94753.0,0.052855]
[1735662843132,0.04340859,94762.0,94761.0,0.052851]
[1735662843328,0.3608,94765.0,94761.0,1.5]
[1735662843527,0.40507507,94765.0,94764.0,0.052849]
[1735662844130,0.3608,94765.0,94764.0,0.052849]
[1735662844325,0.05284,94781.0,94761.0,1.50056]
[1735662844326,0.54501401,94788.0,94770.0,0.052846]
[1735662844537,0.05284,94780.0,94779.0,0.052839]
[1735662844736,0.41364,94780.0,94779.0,0.052839]
[1735662845040,0.3608,94780.0,94779.0,0.052839]
[1735662845742,0.00358335,94784.0,94783.0,0.052839]
[1735662846240,0.00158335,94784.0,94783.0,0.052839]
[1735662846732,0.3608,94790.0,94789.0,0.052835]
[1735662847137,0.3608,94798.0,94797.0,0.052831]
[1735662848041,0.27858839,94801.0,94800.0,0.052829]
[1735662849541,0.28158839,94801.0,94800.0,0.052829]
[1735662850038,0.05284,94781.0,94777.0,0.052842]
[1735662850230,0.28158839,94801.0,94766.0,0.18925111]
[1735662850231,0.7216,94778.0,94766.0,0.18925111]
[1735662850429,0.413648,94767.0,94766.0,0.18925111]
[1735662851042,0.413648,94767.0,94766.0,0.24209911]
[1735662851427,0.413648,94767.0,94766.0,0.18925111]
[1735662852036,0.413648,94767.0,94766.0,0.19325111]
[1735662852538,0.44864652,94767.0,94766.0,0.19325111]
[1735662852742,0.44864652,94767.0,94766.0,0.18925111]
[1735662853243,0.44964652,94767.0,94766.0,0.19825111]
[1735662853842,0.44864652,94767.0,94766.0,0.19225111]
[1735662854340,0.44864652,94767.0,94766.0,0.18925111]
[1735662854638,0.44864652,94767.0,94766.0,0.19125111]
[1735662855442,0.54800755,94767.0,94749.0,0.052857]
[1735662855634,0.052858,94749.0,94748.0,0.052858]
[1735662856749,0.052858,94749.0,94748.0,0.05428192]
[1735662857344,0.053858,94749.0,94748.0,0.06028192]
[1735662858337,0.053858,94749.0,94748.0,0.06228192]
[1735662858738,0.001,94749.0,94748.0,0.06228192]
[1735662859340,0.001,94749.0,94748.0,1.56228192]
[1735662861344,0.001,94749.0,94748.0,0.06228192]
[1735662861539,0.053858,94749.0,94748.0,0.06228192]
[1735662861739,0.001,94749.0,94748.0,0.06228192]
[1735662862756,0.001,94749.0,94748.0,1.56228192]
[1735662864748,0.12418367,94759.0,94758.0,0.052853]
[1735662864944,0.12418367,94759.0,94748.0,0.37022392]
[1735662865147,0.052858,94749.0,94748.0,0.00942392]
[1735662865652,0.052863,94740.0,94729.0,0.0015835]
[1735662865856,0.3608,94730.0,94729.0,0.0544525]
[1735662867550,0.3628,94730.0,94729.0,0.0694525]
[1735662869654,0.39172049,94730.0,94729.0,0.0694525]
[1735662875659,0.002,94730.0,94729.0,0.0694525]
[1735662875858,0.3608,94745.0,94744.0,0.05286]
[1735662876751,0.38892489,94745.0,94744.0,0.05286]
[1735662877264,0.38992489,94745.0,94744.0,0.05986]
[1735662878862,0.44278489,94745.0,94744.0,0.007]
[1735662879052,0.052867,94732.0,94729.0,0.0015835]
[1735662879252,0.3608,94730.0,94729.0,0.0544525]
[1735662880159,0.3608,94730.0,94729.0,0.0664525]
[1735662880458,0.413668,94730.0,94729.0,0.0664525]
[1735662880758,0.24571158,94730.0,94729.0,0.0674525]
[1735662880963,0.24571158,94730.0,94729.0,0.0614525]
[1735662881353,0.24471158,94730.0,94729.0,0.0544525]
[1735662881659,0.24471158,94730.0,94729.0,0.0045835]
[1735662882060,0.24471158,94730.0,94729.0,0.0574525]
[1735662882965,0.27313637,94730.0,94729.0,0.0574525]
[1735662883356,0.27313637,94730.0,94729.0,0.003]
[1735662883559,0.052874,94721.0,94711.0,0.052879]
[1735662883762,0.3608,94714.0,94713.0,0.052878]
[1735662885057,0.3618,94714.0,94713.0,0.052878]
[1735662886771,0.3618,94714.0,94713.0,0.056878]
[1735662886959,0.3618,94714.0,94713.0,1.556878]
[1735662888658,0.38969293,94714.0,94713.0,1.556878]
[1735662888859,0.3608,94722.0,94713.0,1.556878]
[1735662889261,0.3608,94722.0,94721.0,0.052873]
[1735662890274,0.3618,94722.0,94721.0,0.052873]
[1735662890661,0.38979272,94722.0,94721.0,0.052873]
[1735662891355,0.38979272,94722.0,94721.0,0.054873]
[1735662900671,0.3608,94740.0,94721.0,0.002]
[1735662900872,0.3608,94740.0,94739.0,0.052863]
[1735662901578,0.38889457,94740.0,94739.0,0.052863]
[1735662902177,0.00158389,94754.0,94739.0,0.413663]
[1735662902369,0.00158389,94754.0,94753.0,0.052855]
[1735662904684,0.00358389,94754.0,94753.0,0.052855]
[1735662904878,0.3608,94780.0,94779.0,0.052841]
[1735662905070,0.41364,94780.0,94779.0,0.052841]
[1735662905270,0.3608,94780.0,94779.0,0.052841]
[1735662905488,0.3889799,94780.0,94779.0,0.052841]
[1735662905778,0.0281799,94780.0,94779.0,0.413641]
[1735662905983,0.32257813,94790.0,94779.0,0.413641]
[1735662906168,0.32257813,94790.0,94789.0,0.052835]
[1735662906373,0.35077225,94790.0,94789.0,0.052835]
[1735662906878,0.18632912,94790.0,94789.0,0.052835]
[1735662907584,0.04419412,94790.0,94789.0,0.053835]
[1735662908683,0.016,94790.0,94789.0,0.053835]
[1735662909784,0.009,94790.0,94789.0,0.053835]
[1735662909979,0.015,94790.0,94789.0,0.053835]
[1735662910173,0.007,94790.0,94789.0,0.056835]
[1735662910593,0.001,94790.0,94789.0,0.055835]
[1735662910883,0.152826,94807.0,94798.0,0.05283]
[1735662911285,0.1,94807.0,94792.0,0.052833]
[1735662911487,0.1,94807.0,94782.0,0.052839]
[1735662911488,0.052838,94784.0,94782.0,0.052839]
[1735662911682,0.4666,94783.0,94765.0,0.3608]
[1735662911985,0.10724053,94775.0,94765.0,0.3608]
[1735662912181,0.052851,94761.0,94760.0,0.00158305]
[1735662912589,0.3608,94774.0,94760.0,0.00158305]
[1735662912777,0.3608,94774.0,94773.0,0.052844]
[1735662912974,0.05284,94781.0,94768.0,0.3608]
[1735662913189,0.10724053,94780.0,94768.0,0.3608]
[1735662913390,0.052844,94774.0,94773.0,0.052844]
[1735662913781,0.052844,94774.0,94773.0,0.05399282]
[1735662914393,0.10724053,94780.0,94773.0,0.00114882]
[1735662914584,0.052841,94780.0,94779.0,0.05284]
[1735662914784,0.001,94781.0,94780.0,0.05284]
[1735662915989,0.001,94781.0,94780.0,0.05398882]
[1735662916186,0.052833,94793.0,94780.0,0.05398882]
[1735662916388,0.07829736,94793.0,94792.0,0.052834]
[1735662916990,0.07829736,94793.0,94792.0,0.05398282]
[1735662917592,0.02546436,94793.0,94792.0,0.05398282]
[1735662917793,0.05283,94798.0,94797.0,0.05283]
[1735662917991,0.1137,94799.0,94798.0,0.05283]
[1735662918191,0.052827,94805.0,94804.0,0.052827]
[1735662918991,0.07744114,94805.0,94804.0,0.05397582]
[1735662919590,0.18404114,94805.0,94804.0,0.05397582]
[1735662921194,0.19304114,94805.0,94804.0,0.05397582]
[1735662921393,0.14621414,94805.0,94804.0,0.05497582]
[1735662921992,0.14021414,94805.0,94804.0,0.05397582]
[1735662922191,0.14621414,94805.0,94804.0,0.05497582]
[1735662922808,0.03961414,94805.0,94804.0,0.05497582]
[1735662923702,0.015,94805.0,94804.0,0.05497582]
[1735662925094,0.001,94805.0,94804.0,0.05397582]
[1735662926499,0.001,94805.0,94804.0,0.00114882]
[1735662926803,0.053826,94805.0,94804.0,0.00114882]
[1735662927391,0.301,94805.0,94778.0,0.3608]
[1735662927596,0.052841,94779.0,94778.0,0.3608]
[1735662928590,0.052841,94779.0,94778.0,0.3628]
[1735662928790,0.1049,94787.0,94786.0,0.052837]
[1735662929004,0.1049,94787.0,94778.0,0.3628]
[1735662929206,0.052841,94779.0,94778.0,0.3628]
[1735662930104,0.052841,94779.0,94778.0,0.418641]
[1735662930323,0.417641,94779.0,94772.0,1.5006]
[1735662930606,0.417641,94779.0,94747.0,0.052858]
[1735662930607,0.052859,94748.0,94747.0,0.052858]
[1735662930806,0.052845,94773.0,94746.0,0.413659]
[1735662930807,0.052857,94750.0,94746.0,0.413659]
[1735662931008,0.052858,94749.0,94747.0,0.052858]
[1735662931199,0.052859,94747.0,94746.0,0.3608]
[1735662931995,0.052859,94747.0,94746.0,0.413659]
[1735662932195,0.001,94749.0,94748.0,0.052858]
[1735662932396,0.053858,94749.0,94748.0,0.052858]
[1735662933104,0.001,94749.0,94748.0,0.052858]
[1735662934009,0.001,94747.0,94746.0,0.413659]
[1735662934606,0.002,94749.0,94746.0,0.3608]
[1735662934907,0.001,94749.0,94747.0,0.052859]
[1735662935106,0.001,94749.0,94748.0,0.052858]
[1735662936608,0.07480707,94757.0,94755.0,0.052854]
[1735662936905,0.3608,94768.0,94766.0,0.052848]
[1735662937106,0.00158329,94769.0,94766.0,0.3608]
[1735662937310,0.00158329,94769.0,94768.0,0.052847]
[1735662937509,0.00158329,94769.0,94768.0,1.552847]
[1735662938095,0.02365365,94769.0,94768.0,1.552847]
[1735662938299,0.03465365,94769.0,94768.0,1.552847]
[1735662939395,0.052848,94767.0,94747.0,0.3608]
[1735662939601,0.3608,94754.0,94735.0,0.3608]
[1735662939811,0.10724053,94750.0,94735.0,0.3608]
[1735662939997,0.10724053,94750.0,94734.0,0.052866]
[1735662940202,0.10724053,94744.0,94735.0,0.052865]
[1735662940409,0.052864,94738.0,94736.0,0.052864]
[1735662940612,0.10724053,94744.0,94729.0,1.5]
[1735662940909,0.3608,94746.0,94740.0,0.052863]
[1735662940910,0.052861,94743.0,94740.0,0.052863]
[1735662941499,0.001,94750.0,94736.0,1.8608]
[1735662941707,0.001,94744.0,94740.0,0.10724053]
[1735662941902,0.001,94744.0,94743.0,0.052861]
[1735662942305,0.02157311,94747.0,94746.0,0.052859]
[1735662942507,0.052853,94758.0,94746.0,0.3608]
[1735662942904,0.052853,94758.0,94757.0,0.052853]
[1735662943316,0.07536304,94758.0,94757.0,0.052853]
[1735662944115,0.07936304,94758.0,94757.0,0.052853]
[1735662944812,0.08536304,94758.0,94757.0,0.052853]
[1735662946915,0.07936304,94758.0,94757.0,0.052853]
[1735662948322,0.08036304,94758.0,94757.0,0.052853]
[1735662948518,0.02951004,94758.0,94757.0,0.052853]
[1735662949113,0.007,94758.0,94757.0,0.413653]
[1735662950010,0.006,94758.0,94757.0,1.913653]
[1735662950722,0.004,94758.0,94757.0,2.027753]
[1735662950922,0.002,94758.0,94757.0,2.027753]
[1735662951519,0.00158352,94777.0,94776.0,0.052843]
[1735662951721,0.052845,94772.0,94771.0,0.052845]
[1735662952410,0.05442552,94777.0,94776.0,0.052843]
[1735662953429,0.07627882,94777.0,94776.0,0.052843]
[1735662954128,0.08227882,94777.0,94776.0,0.052843]
[1735662954523,0.07627882,94777.0,94776.0,0.052843]
[1735662954723,0.08127882,94777.0,94776.0,0.052843]
[1735662955124,0.08527882,94777.0,94776.0,0.052843]
[1735662955323,0.08627882,94777.0,94776.0,0.052843]
[1735662956222,0.08527882,94777.0,94776.0,0.052843]
[1735662956726,0.08127882,94777.0,94776.0,0.052843]
[1735662956910,0.08527882,94777.0,94776.0,0.052843]
[1735662957523,0.08127882,94777.0,94776.0,0.052843]
[1735662957713,0.08427882,94777.0,94776.0,0.052843]
[1735662958324,0.08527882,94777.0,94776.0,0.052843]
[1735662959027,0.03143682,94777.0,94776.0,0.052843]
[1735662960333,0.02743682,94777.0,94776.0,0.052843]
[1735662960523,0.008,94777.0,94776.0,0.052843]
[1735662960920,0.009,94777.0,94776.0,0.052843]
[1735662961120,0.18567,94780.0,94779.0,0.052841]
[1735662961320,0.00158269,94796.0,94795.0,0.052832]
[1735662961520,0.00158269,94796.0,94795.0,0.413632]
[1735662963025,0.05441369,94796.0,94795.0,0.413632]
[1735662963231,0.05441369,94796.0,94795.0,0.3608]
[1735662963419,0.07673341,94796.0,94795.0,0.413632]
[1735662963730,0.08373341,94796.0,94795.0,0.414632]
[1735662964027,0.0008,94809.0,94795.0,0.414632]
[1735662964220,0.052825,94808.0,94806.0,0.052826]
[1735662964428,0.00158239,94815.0,94806.0,0.052826]
[1735662964616,0.02195235,94808.0,94806.0,0.052826]
[1735662964819,0.00158239,94815.0,94806.0,0.052826]
[1735662965227,0.05440339,94815.0,94806.0,0.052826]
[1735662965526,0.103,94807.0,94806.0,0.052826]
[1735662966132,0.00158239,94815.0,94805.0,0.1115]
[1735662966324,0.00158239,94815.0,94804.0,0.3608]
[1735662966325,0.052831,94798.0,94797.0,0.052829]
[1735662966816,0.3608,94802.0,94785.0,0.2206]
[1735662967022,0.052839,94783.0,94782.0,0.052839]
[1735662967222,0.052842,94778.0,94777.0,0.052841]
[1735662967622,0.052838,94785.0,94784.0,0.052838]
[1735662968025,0.052841,94780.0,94779.0,0.052841]
[1735662968829,0.3608,94785.0,94777.0,0.004]
[1735662969026,0.052841,94778.0,94777.0,0.056842]
[1735662969224,0.052841,94778.0,94777.0,1.504]
[1735662969419,0.052841,94778.0,94777.0,0.004]
[1735662969732,0.052848,94766.0,94753.0,0.052855]
[1735662969937,0.3608,94776.0,94774.0,0.052843]
[1735662970233,0.052843,94775.0,94774.0,0.052843]
[1735662970831,0.001,94780.0,94779.0,0.052841]
[1735662971333,0.001,94780.0,94765.0,0.36238283]
[1735662971534,0.052841,94779.0,94778.0,0.052841]
[1735662971735,0.05231928,94779.0,94778.0,0.052841]
[1735662972239,0.052839,94784.0,94783.0,0.052838]
[1735662973538,0.058839,94784.0,94783.0,0.053838]
[1735662974632,0.060839,94784.0,94783.0,0.053838]
[1735662974842,0.008,94784.0,94783.0,0.053838]
[1735662975138,0.005,94784.0,94783.0,0.052838]
[1735662975361,0.007,94784.0,94783.0,0.052838]
[1735662975745,0.007,94784.0,94783.0,0.053838]
[1735662975746,0.01,94784.0,94783.0,0.053838]
[1735662976544,0.00158283,94804.0,94803.0,0.052828]
[1735662976953,0.1007,94821.0,94803.0,0.052828]
[1735662977151,0.153518,94821.0,94820.0,0.05174958]
[1735662978354,0.006,94821.0,94820.0,0.05274958]
[1735662978559,0.006,94821.0,94820.0,0.05423491]
[1735662978956,0.009,94821.0,94820.0,0.05423491]
[1735662979157,0.015,94821.0,94820.0,0.05523491]
[1735662980159,0.011,94821.0,94820.0,0.05523491]
[1735662980453,0.011,94821.0,94820.0,1.55523491]
[1735662980751,0.007,94821.0,94820.0,1.55423491]
[1735662981357,0.005,94821.0,94820.0,1.55423491]
[1735662981548,0.007,94821.0,94820.0,1.55423491]
[1735662981750,0.0034434,94834.0,94833.0,0.052811]
[1735662982657,0.0034434,94834.0,94833.0,0.05429633]
[1735662982957,0.0114434,94834.0,94833.0,0.05529633]
[1735662983859,0.0164434,94834.0,94833.0,0.05529633]
[1735662984452,0.0114434,94834.0,94833.0,0.05529633]
[1735662984758,0.0044434,94834.0,94833.0,0.05429633]
[1735662984947,0.0064434,94834.0,94833.0,0.05429633]
[1735662985547,0.0054434,94834.0,94833.0,0.05429633]
[1735662986968,0.0582534,94834.0,94833.0,0.05429633]
[1735662987146,0.0582534,94834.0,94833.0,0.00148533]
[1735662987464,0.00195818,94831.0,94814.0,0.052821]
[1735662987662,0.05282,94817.0,94816.0,0.05282]
[1735662987960,0.05282,94817.0,94800.0,0.46804053]
[1735662987961,0.3608,94825.0,94821.0,0.052817]
[1735662988352,0.052817,94822.0,94821.0,0.052817]
[1735662989561,0.3628,94825.0,94811.0,1.5]
[1735662989756,0.3608,94825.0,94824.0,0.052816]
[1735662990257,0.05477018,94831.0,94830.0,0.052812]
[1735662990458,0.00195818,94831.0,94830.0,0.052812]
[1735662991257,0.00195818,94831.0,94830.0,0.413612]
[1735662991657,0.00195818,94831.0,94830.0,0.052812]
[1735662991856,0.00195818,94831.0,94830.0,1.552812]
[1735662992064,0.00295818,94831.0,94830.0,1.552812]
[1735662994263,0.4608,94846.0,94830.0,1.5]
[1735662994264,0.1,94846.0,94830.0,1.5]
[1735662994456,0.1,94846.0,94845.0,0.052804]
[1735662995666,0.108,94846.0,94845.0,0.053804]
[1735662997163,0.112,94846.0,94845.0,0.053804]
[1735662997362,0.0174689,94861.0,94845.0,0.053804]
[1735662997562,0.1995,94865.0,94864.0,0.052794]
[1735662997967,0.1,94865.0,94864.0,0.052794]
[1735662998764,0.108,94865.0,94864.0,0.053794]
[1735662999273,0.1,94865.0,94864.0,0.052794]
[1735662999470,0.108,94865.0,94864.0,0.053794]
[1735663000358,0.115,94865.0,94864.0,0.054794]
[1735663000972,0.108,94865.0,94864.0,0.053794]
[1735663001267,0.11,94865.0,94864.0,0.053794]
[1735663001775,0.0015819,94880.0,94879.0,0.052785]
[1735663002468,0.01903914,94880.0,94879.0,0.052785]
[1735663003470,0.02403914,94880.0,94879.0,0.053785]
[1735663004971,0.18873729,94882.0,94881.0,0.052789]
[1735663005175,0.01744116,94882.0,94881.0,0.052789]
[1735663005471,0.2027,94887.0,94879.0,0.001]
[1735663005664,0.2027,94887.0,94883.0,0.052788]
[1735663005865,0.052787,94885.0,94883.0,0.052788]
[1735663006470,0.00072,94892.0,94883.0,0.413588]
[1735663006670,0.052781,94897.0,94883.0,0.413588]
[1735663006869,0.1074,94899.0,94883.0,0.413588]
[1735663007071,0.1,94900.0,94883.0,0.413588]
[1735663007369,0.1,94900.0,94894.0,0.052782]
[1735663007574,0.1,94900.0,94899.0,0.052779]
[1735663008868,0.1,94900.0,94899.0,0.053779]
[1735663008869,0.101,94900.0,94899.0,0.053779]
[1735663009270,0.101,94900.0,94899.0,0.414579]
[1735663009469,1e-06,94900.0,94899.0,0.414579]
[1735663009667,0.1051,94921.0,94920.0,0.052768]
[1735663009867,0.122616,94921.0,94913.0,0.052771]
[1735663010069,0.052771,94914.0,94913.0,0.052771]
[1735663010265,0.122616,94921.0,94915.0,0.05277]
[1735663010459,0.05277,94916.0,94915.0,0.05277]
[1735663011459,0.122616,94921.0,94920.0,0.052768]
[1735663012074,0.1051,94921.0,94920.0,0.052768]
[1735663012863,0.1,94922.0,94921.0,0.052772]
[1735663014061,0.1,94922.0,94921.0,0.053772]
[1735663014775,0.1,94922.0,94921.0,1.552772]
[1735663015263,0.1,94922.0,94921.0,0.052772]
[1735663015473,0.1,94922.0,94921.0,0.053772]
[1735663016677,0.1,94922.0,94921.0,0.07081841]
[1735663018568,0.0994,94922.0,94916.0,1.50056]
[1735663018876,0.0994,94922.0,94899.0,0.3608]
[1735663019073,0.10724053,94910.0,94899.0,0.3608]
[1735663019279,0.05278,94908.0,94906.0,0.052781]
[1735663019677,0.1063,94909.0,94900.0,1.50056]
[1735663019979,0.052781,94906.0,94905.0,0.052781]
[1735663021673,0.052781,94906.0,94900.0,1.50056]
[1735663021674,0.052783,94901.0,94900.0,1.50056]
[1735663021876,0.052783,94901.0,94900.0,1.5]
[1735663022378,0.3608,94907.0,94894.0,0.052787]
[1735663022578,0.3608,94899.0,94894.0,0.052787]
[1735663022769,0.3608,94899.0,94879.0,0.052796]
[1735663022770,0.052787,94896.0,94872.0,0.3608]
[1735663022971,0.052791,94889.0,94872.0,0.3608]
[1735663023170,0.052791,94889.0,94888.0,0.052791]
[1735663023769,0.1028,94898.0,94882.0,1.86136]
[1735663023968,0.1063,94909.0,94892.0,0.3608]
[1735663024375,0.1063,94909.0,94908.0,0.05278]
[1735663026066,0.1063,94909.0,94908.0,0.05378]
[1735663026671,0.1063,94909.0,94908.0,0.05278]
[1735663026875,0.1063,94909.0,94908.0,0.05378]
[1735663027282,0.1063,94909.0,94908.0,1.55378]
[1735663028374,0.159079,94909.0,94908.0,1.501]
[1735663028577,0.159079,94909.0,94908.0,0.05378]
[1735663028975,0.159079,94909.0,94908.0,0.05278]
[1735663029278,0.159079,94909.0,94892.0,0.3608]
[1735663029279,0.1063,94909.0,94892.0,0.3608]
[1735663029484,0.052791,94888.0,94887.0,0.052791]
[1735663029875,0.413591,94888.0,94887.0,0.052791]
[1735663030683,0.3608,94888.0,94881.0,1.5006]
[1735663030885,0.052794,94883.0,94882.0,0.052793]
[1735663031068,0.3608,94888.0,94881.0,1.50064]
[1735663031069,0.052794,94882.0,94881.0,1.50064]
[1735663031275,0.161094,94882.0,94881.0,1.5]
[1735663031681,0.161094,94882.0,94860.0,0.10724053]
[1735663031682,0.052796,94879.0,94878.0,0.052796]
[1735663032184,0.052796,94879.0,94878.0,1.552796]
[1735663033876,0.052796,94879.0,94878.0,1.542296]
[1735663034073,0.052796,94879.0,94878.0,1.544296]
[1735663035086,0.052796,94879.0,94878.0,1.547296]
[1735663035286,0.3608,94880.0,94862.0,0.3608]
[1735663035474,0.3608,94880.0,94858.0,0.00158148]
[1735663035475,0.052807,94859.0,94858.0,0.00158148]
[1735663035675,0.052812,94849.0,94848.0,0.052812]
[1735663036185,0.3608,94853.0,94844.0,0.3608]
[1735663036380,0.052815,94845.0,94844.0,0.3608]
[1735663036586,0.052815,94845.0,94844.0,0.413615]
[1735663037292,0.052815,94845.0,94844.0,1.913615]
[1735663037585,0.3608,94853.0,94844.0,0.007]
[1735663037786,0.052811,94852.0,94844.0,0.007]
[1735663037987,0.052815,94845.0,94844.0,0.011]
[1735663038188,0.413615,94845.0,94844.0,0.011]
[1735663039685,0.413615,94845.0,94844.0,0.01]
[1735663039990,0.413615,94845.0,94844.0,0.009]
[1735663040385,0.413615,94845.0,94844.0,0.006]
[1735663040588,0.413615,94845.0,94844.0,0.01]
[1735663044982,0.3608,94863.0,94844.0,0.423615]
[1735663045183,0.02924722,94865.0,94852.0,0.3608]
[1735663045384,0.02924722,94865.0,94864.0,0.052804]
[1735663046087,0.00158224,94865.0,94864.0,0.052804]
[1735663046999,0.003,94865.0,94864.0,0.052804]
[1735663047185,0.004,94865.0,94864.0,1.552804]
[1735663047389,0.004,94865.0,94864.0,1.58095492]
[1735663047694,0.81384854,94914.0,94884.0,0.052793]
[1735663047695,0.00158133,94895.0,94884.0,0.052793]
[1735663048492,0.02766228,94886.0,94884.0,0.052793]
[1735663048698,0.00158133,94895.0,94884.0,0.052793]
[1735663049192,0.00158133,94895.0,94894.0,0.052787]
[1735663049988,0.02916264,94895.0,94894.0,0.052787]
[1735663050200,0.00158133,94895.0,94894.0,0.052787]
[1735663050691,0.00158133,94895.0,94894.0,0.053787]
[1735663051091,0.00258133,94895.0,94894.0,0.053787]
[1735663052192,0.00158133,94895.0,94894.0,0.053787]
[1735663052389,0.00258133,94895.0,94894.0,0.052787]
[1735663053792,0.00158133,94895.0,94894.0,0.052787]
[1735663054087,0.00258133,94895.0,94894.0,0.052787]
[1735663054599,0.00158133,94895.0,94894.0,0.052787]
[1735663054802,0.02919894,94895.0,94894.0,0.052787]
[1735663054995,0.00158133,94895.0,94894.0,0.052787]
[1735663056405,0.02962886,94895.0,94894.0,0.052787]
[1735663057092,0.03062886,94895.0,94894.0,0.052787]
[1735663058608,0.00258133,94895.0,94894.0,0.413587]
[1735663059501,0.18622023,94905.0,94894.0,1.913587]
[1735663059699,0.18622023,94905.0,94904.0,0.413578]
[1735663060505,0.18622023,94905.0,94894.0,0.00064]
[1735663060506,0.052783,94895.0,94894.0,0.00064]
[1735663060710,0.052791,94883.0,94879.0,0.052792]
[1735663061006,0.413591,94883.0,94875.0,0.00158096]
[1735663061203,0.052791,94881.0,94880.0,0.052791]
[1735663061595,0.2175,94894.0,94875.0,0.00158096]
[1735663061797,0.052791,94884.0,94883.0,0.052791]
[1735663062597,0.2175,94894.0,94883.0,0.052791]
[1735663062799,0.052788,94890.0,94889.0,0.052788]
[1735663063303,0.13732209,94894.0,94893.0,0.052786]
[1735663063696,0.08130709,94894.0,94893.0,0.052786]
[1735663063897,0.05279,94886.0,94885.0,0.052789]
[1735663065608,0.052788,94890.0,94889.0,0.052787]
[1735663065807,0.3608,94892.0,94882.0,1.50056]
[1735663065808,0.052789,94888.0,94887.0,0.052788]
[1735663066001,0.3608,94892.0,94891.0,0.052787]
[1735663067212,0.38803277,94892.0,94891.0,0.052787]
[1735663070812,0.44081877,94892.0,94891.0,0.052787]
[1735663072611,0.28477396,94892.0,94891.0,0.052787]
[1735663072813,0.31238033,94892.0,94891.0,0.052787]
[1735663073317,0.052797,94873.0,94872.0,0.0015812]
[1735663074702,0.052797,94873.0,94872.0,0.0035812]
[1735663075106,0.052797,94873.0,94872.0,0.0065812]
[1735663075615,0.23198796,94892.0,94884.0,0.05279]
[1735663075805,0.05279,94885.0,94884.0,0.05279]
[1735663076209,0.05279,94885.0,94884.0,1.55279]
[1735663077109,0.05279,94885.0,94884.0,1.5]
[1735663077511,0.052796,94877.0,94876.0,0.052795]
[1735663077915,0.052796,94877.0,94876.0,1.552795]
[1735663081120,0.052796,94877.0,94876.0,1.913595]
[1735663082522,0.21817483,94883.0,94876.0,1.8608]
[1735663082820,0.21817483,94883.0,94882.0,0.052792]
[1735663083408,0.24934266,94884.0,94882.0,1.552792]
[1735663083612,0.24934266,94884.0,94883.0,0.052791]
[1735663084424,0.24934266,94886.0,94883.0,1.5]
[1735663084721,0.24934266,94886.0,94885.0,0.05279]
[1735663085818,0.24934266,94886.0,94885.0,0.41359]
[1735663086923,0.18699184,94891.0,94890.0,0.052787]
[1735663088724,0.18699184,94892.0,94885.0,0.41359]
[1735663088924,0.18699184,94892.0,94891.0,0.052787]
[1735663090526,0.30954265,94897.0,94891.0,0.052787]
[1735663090721,0.30954265,94897.0,94896.0,0.052784]
[1735663091829,0.36232665,94897.0,94896.0,0.052784]
[1735663092015,0.05279,94888.0,94887.0,0.052788]
[1735663092325,0.05279,94888.0,94885.0,0.3608]
[1735663092326,0.05279,94886.0,94885.0,0.3608]
[1735663092627,0.05279,94886.0,94885.0,0.41359]
[1735663094819,0.05279,94886.0,94885.0,0.3608]
[1735663095032,0.05279,94886.0,94885.0,0.41359]
[1735663095719,0.1064,94887.0,94886.0,0.052789]
[1735663096327,0.13411686,94887.0,94886.0,0.052789]
[1735663097013,0.18690586,94887.0,94886.0,0.052789]
[1735663097824,0.13411686,94887.0,94886.0,0.052789]
[1735663098332,0.18690586,94887.0,94886.0,0.052789]
[1735663099619,0.29048601,94887.0,94886.0,0.052789]
[1735663100431,0.052793,94882.0,94881.0,0.052792]
[1735663100829,0.052793,94882.0,94876.0,1.50056]
[1735663100830,0.052793,94882.0,94876.0,0.00056]
[1735663101030,0.3608,94880.0,94872.0,0.0015812]
[1735663101327,0.052796,94874.0,94873.0,0.052796]
[1735663102428,0.052806,94856.0,94855.0,0.413607]
[1735663103117,0.15638615,94856.0,94855.0,0.41474992]
[1735663103322,0.15638615,94856.0,94855.0,0.36194292]
[1735663103637,0.15638615,94856.0,94855.0,0.37094292]
[1735663104227,0.19050192,94856.0,94855.0,0.42374992]